[Event "*** Titled Tuesday Blitz"]
[Site "Chess.com"]
[Date "2021.03.30"]
[Round "11"]
[White "politeplayer"]
[Black "korkmaz16"]
[Result "0-1"]
[WhiteElo "2212"]
[BlackElo "2441"]
[TimeControl "180+1"]
[EndTime "12:08:36 PDT"]
[Termination "korkmaz16 won by resignation"]

1. e4 {[%clk 0:01:28.5]} 1... e6 {[%clk 0:02:56.3]} 2. d4 {[%clk 0:01:27.5]}
2... d5 {[%clk 0:02:56.1]} 3. exd5 {[%clk 0:01:27.9]} 3... exd5 {[%clk
0:02:56.2]} 4. Nf3 {[%clk 0:01:28.5]} 4... Nf6 {[%clk 0:02:56]} 5. Bd3 {[%clk
0:01:28.3]} 5... Bd6 {[%clk 0:02:55.9]} 6. Qe2+ {[%clk 0:01:28.3]} 6... Be6
{[%clk 0:02:55.2]} 7. Ng5 {[%clk 0:01:27.5]} 7... Qe7 {[%clk 0:02:44.6]} 8. Nxe6
{[%clk 0:01:25.2]} 8... fxe6 {[%clk 0:02:45.5]} 9. O-O {[%clk 0:01:24.4]} 9...
O-O {[%clk 0:02:44.7]} 10. Bg5 {[%clk 0:01:24.9]} 10... e5 {[%clk 0:02:43.2]}
11. dxe5 {[%clk 0:01:23]} 11... Qxe5 {[%clk 0:02:44.1]} 12. Qxe5 {[%clk
0:01:17.7]} 12... Bxe5 {[%clk 0:02:45]} 13. Nc3 {[%clk 0:01:17.4]} 13... c6
{[%clk 0:02:44.8]} 14. Rae1 {[%clk 0:01:12.9]} 14... Nbd7 {[%clk 0:02:44.1]} 15.
Bxf6 {[%clk 0:01:07.4]} 15... Rxf6 {[%clk 0:02:40.1]} 16. g3 {[%clk 0:01:07.2]}
16... g5 {[%clk 0:02:38]} 17. f4 {[%clk 0:01:04]} 17... gxf4 {[%clk 0:02:34.3]}
18. gxf4 {[%clk 0:01:04.2]} 18... Bd6 {[%clk 0:02:24.8]} 19. Ne2 {[%clk
0:00:58.6]} 19... Kh8 {[%clk 0:02:20.7]} 20. Ng3 {[%clk 0:00:58]} 20... Rg8
{[%clk 0:02:19.4]} 21. Kg2 {[%clk 0:00:56.9]} 21... Nc5 {[%clk 0:02:02.1]} 22.
f5 {[%clk 0:00:51.6]} 22... h5 {[%clk 0:01:58.1]} 23. Kf3 {[%clk 0:00:38.2]}
23... Nxd3 {[%clk 0:01:52.4]} 24. cxd3 {[%clk 0:00:37.7]} 24... h4 {[%clk
0:01:46]} 25. Ne2 {[%clk 0:00:36.6]} 25... Rxf5+ {[%clk 0:01:45.8]} 26. Ke3
{[%clk 0:00:37.1]} 26... Re5+ {[%clk 0:01:38.7]} 27. Kd2 {[%clk 0:00:36.5]}
27... Rg2 {[%clk 0:01:34]} 28. a3 {[%clk 0:00:31.9]} 28... Rxh2 {[%clk
0:01:31.3]} 29. Rf7 {[%clk 0:00:31.6]} 29... Re7 {[%clk 0:01:26.9]} 30. Rf6
{[%clk 0:00:28]} 30... Be5 {[%clk 0:01:20.8]} 31. Rf5 {[%clk 0:00:27.9]} 31...
Bxb2 {[%clk 0:01:18.8]} 32. Kd1 {[%clk 0:00:27.8]} 32... h3 {[%clk 0:01:13.2]}
33. d4 {[%clk 0:00:27.8]} 33... Bxa3 {[%clk 0:01:08.1]} 34. Nf4 {[%clk
0:00:19.7]} 34... Rxe1+ {[%clk 0:01:02]} 35. Kxe1 {[%clk 0:00:19.7]} 35... Rh1+
{[%clk 0:00:48.4]} 36. Kf2 {[%clk 0:00:18.8]} 36... h2 {[%clk 0:00:48.9]} 37.
Kg2 {[%clk 0:00:11.7]} 37... Rd1 {[%clk 0:00:47.9]} 38. Kxh2 {[%clk 0:00:11.7]}
38... Bd6 {[%clk 0:00:45]} 39. Kh3 {[%clk 0:00:10.8]} 39... Bxf4 {[%clk
0:00:43.9]} 40. Rxf4 {[%clk 0:00:11]} 40... Rb1 {[%clk 0:00:43.9]} 41. Kg4
{[%clk 0:00:11.3]} 41... Kg7 {[%clk 0:00:42.3]} 42. Kf5 {[%clk 0:00:11.4]} 42...
Kf7 {[%clk 0:00:42.9]} 43. Ke5+ {[%clk 0:00:11.7]} 43... Ke7 {[%clk 0:00:43.3]}
44. Rh4 {[%clk 0:00:12.2]} 44... Re1+ {[%clk 0:00:42.6]} 45. Kf5 {[%clk
0:00:12.6]} 45... Kd7 {[%clk 0:00:40.9]} 46. Rh7+ {[%clk 0:00:12.2]} 46... Kc8
{[%clk 0:00:41.2]} 47. Kf6 {[%clk 0:00:12.5]} 47... a5 {[%clk 0:00:41.1]} 48.
Rh3 {[%clk 0:00:12.2]} 48... b5 {[%clk 0:00:40.5]} 49. Rc3 {[%clk 0:00:11.1]}
49... Kc7 {[%clk 0:00:40.1]} 50. Rg3 {[%clk 0:00:10.5]} 50... a4 {[%clk
0:00:40.3]} 0-1

[Event "*** Titled Tuesday Blitz"]
[Site "Chess.com"]
[Date "2021.03.30"]
[Round "11"]
[White "catzapto"]
[Black "annamaja"]
[Result "0-1"]
[WhiteElo "2170"]
[BlackElo "2335"]
[TimeControl "180+1"]
[EndTime "12:08:36 PDT"]
[Termination "annamaja won by checkmate"]

1. e4 {[%clk 0:03:00.9]} 1... e6 {[%clk 0:02:59.1]} 2. d4 {[%clk 0:03:00.5]}
2... d5 {[%clk 0:02:59.4]} 3. Nd2 {[%clk 0:03:00.3]} 3... Nf6 {[%clk 0:02:59.2]}
4. e5 {[%clk 0:02:55.4]} 4... Nfd7 {[%clk 0:02:59.6]} 5. Bd3 {[%clk 0:02:55.7]}
5... c5 {[%clk 0:03:00]} 6. c3 {[%clk 0:02:56.4]} 6... Nc6 {[%clk 0:03:00.3]} 7.
Ne2 {[%clk 0:02:56.9]} 7... cxd4 {[%clk 0:02:58.2]} 8. cxd4 {[%clk 0:02:56.5]}
8... f6 {[%clk 0:02:58.7]} 9. exf6 {[%clk 0:02:56.1]} 9... Qxf6 {[%clk
0:02:58.2]} 10. O-O {[%clk 0:02:56.8]} 10... Bd6 {[%clk 0:02:47.6]} 11. Nf3
{[%clk 0:02:55.4]} 11... h6 {[%clk 0:02:47.9]} 12. Ng3 {[%clk 0:02:17.4]} 12...
O-O {[%clk 0:02:46.4]} 13. Nh5 {[%clk 0:02:03.1]} 13... Qf7 {[%clk 0:02:44.7]}
14. Nh4 {[%clk 0:01:59.8]} 14... Ne7 {[%clk 0:02:41.1]} 15. Qg4 {[%clk
0:01:37.8]} 15... Nf6 {[%clk 0:02:34]} 16. Nxf6+ {[%clk 0:01:31.9]} 16... Qxf6
{[%clk 0:02:34.9]} 17. Ng6 {[%clk 0:01:26.4]} 17... e5 {[%clk 0:02:22.8]} 18.
Nxe7+ {[%clk 0:01:24.5]} 18... Bxe7 {[%clk 0:02:15.7]} 19. dxe5 {[%clk
0:01:20.4]} 19... Bxg4 {[%clk 0:02:12.7]} 20. exf6 {[%clk 0:01:20.5]} 20... Rxf6
{[%clk 0:02:08.6]} 21. Be3 {[%clk 0:01:13.8]} 21... a6 {[%clk 0:01:53.5]} 22.
Rac1 {[%clk 0:01:11.4]} 22... Rc6 {[%clk 0:01:50.3]} 23. Rxc6 {[%clk 0:01:08]}
23... bxc6 {[%clk 0:01:51.2]} 24. Rc1 {[%clk 0:01:08]} 24... Bd7 {[%clk
0:01:49]} 25. f3 {[%clk 0:00:45.2]} 25... Bf6 {[%clk 0:01:35.1]} 26. b3 {[%clk
0:00:41.5]} 26... a5 {[%clk 0:01:34.8]} 27. Bd2 {[%clk 0:00:30]} 27... a4 {[%clk
0:01:31.9]} 28. b4 {[%clk 0:00:30.5]} 28... Bb2 {[%clk 0:01:14.5]} 29. Rc2
{[%clk 0:00:27.1]} 29... Bd4+ {[%clk 0:01:09.1]} 30. Kf1 {[%clk 0:00:27.5]}
30... Rc8 {[%clk 0:01:04.4]} 31. a3 {[%clk 0:00:27]} 31... c5 {[%clk 0:01:03.5]}
32. bxc5 {[%clk 0:00:26.3]} 32... Rxc5 {[%clk 0:01:03.3]} 33. Rxc5 {[%clk
0:00:24.5]} 33... Bxc5 {[%clk 0:01:04.2]} 34. Bb4 {[%clk 0:00:21.4]} 34... Bxb4
{[%clk 0:01:01.1]} 35. axb4 {[%clk 0:00:22.3]} 35... a3 {[%clk 0:01:01.6]} 36.
Bb1 {[%clk 0:00:22.4]} 36... Bb5+ {[%clk 0:01:00.6]} 37. Ke1 {[%clk 0:00:20.6]}
37... Bc4 {[%clk 0:01:00.3]} 38. b5 {[%clk 0:00:20.9]} 38... Bxb5 {[%clk
0:00:59.6]} 39. Kd2 {[%clk 0:00:20]} 39... Bc4 {[%clk 0:00:59.3]} 40. Kc3 {[%clk
0:00:17.9]} 40... Kf7 {[%clk 0:00:59.1]} 41. f4 {[%clk 0:00:15.5]} 41... Ke7
{[%clk 0:00:57.6]} 42. g4 {[%clk 0:00:15.6]} 42... Kd6 {[%clk 0:00:58.2]} 43. f5
{[%clk 0:00:15.8]} 43... Kc5 {[%clk 0:00:58.8]} 44. h4 {[%clk 0:00:15.7]} 44...
d4+ {[%clk 0:00:59.4]} 45. Kc2 {[%clk 0:00:16.3]} 45... a2 {[%clk 0:00:53.9]}
46. Bxa2 {[%clk 0:00:16.1]} 46... Bxa2 {[%clk 0:00:54.8]} 47. g5 {[%clk
0:00:16.6]} 47... hxg5 {[%clk 0:00:52.2]} 48. hxg5 {[%clk 0:00:16.8]} 48... Bd5
{[%clk 0:00:52.3]} 49. Kd3 {[%clk 0:00:16.7]} 49... Bc4+ {[%clk 0:00:52.1]} 50.
Ke4 {[%clk 0:00:15.9]} 50... d3 {[%clk 0:00:51.6]} 51. Ke3 {[%clk 0:00:16.3]}
51... Kd6 {[%clk 0:00:49.6]} 52. f6 {[%clk 0:00:16.2]} 52... gxf6 {[%clk
0:00:47.2]} 53. gxf6 {[%clk 0:00:16.6]} 53... Ke6 {[%clk 0:00:47.1]} 54. Kd2
{[%clk 0:00:16.4]} 54... Kxf6 {[%clk 0:00:47.3]} 55. Kc3 {[%clk 0:00:17.3]}
55... Ke5 {[%clk 0:00:47.3]} 56. Kd2 {[%clk 0:00:18.2]} 56... Kd4 {[%clk
0:00:47.3]} 57. Kd1 {[%clk 0:00:18.5]} 57... Ke3 {[%clk 0:00:47]} 58. Kc1 {[%clk
0:00:19.4]} 58... d2+ {[%clk 0:00:46.6]} 59. Kd1 {[%clk 0:00:20.3]} 59... Bb3#
{[%clk 0:00:46.7]} 0-1

[Event "*** Titled Tuesday Blitz"]
[Site "Chess.com"]
[Date "2021.03.30"]
[Round "11"]
[White "fabianvivasz"]
[Black "DanilovVladimir"]
[Result "1-0"]
[WhiteElo "2420"]
[BlackElo "2478"]
[TimeControl "180+1"]
[EndTime "12:08:38 PDT"]
[Termination "fabianvivasz won by resignation"]

1. e4 {[%clk 0:03:00.9]} 1... e5 {[%clk 0:02:59.2]} 2. Nf3 {[%clk 0:03:00.6]}
2... Nc6 {[%clk 0:02:58.7]} 3. Bc4 {[%clk 0:03:01]} 3... Nf6 {[%clk 0:02:58]} 4.
d4 {[%clk 0:02:57.2]} 4... exd4 {[%clk 0:02:55.8]} 5. e5 {[%clk 0:02:57.7]} 5...
d5 {[%clk 0:02:54.8]} 6. Bb5 {[%clk 0:02:57.6]} 6... Ne4 {[%clk 0:02:55.3]} 7.
Nxd4 {[%clk 0:02:58]} 7... Bd7 {[%clk 0:02:55.9]} 8. Bxc6 {[%clk 0:02:57.9]}
8... bxc6 {[%clk 0:02:56.8]} 9. O-O {[%clk 0:02:57.7]} 9... Bc5 {[%clk
0:02:56.8]} 10. f3 {[%clk 0:02:57.7]} 10... Ng5 {[%clk 0:02:56.1]} 11. f4 {[%clk
0:02:58.2]} 11... Ne4 {[%clk 0:02:56.1]} 12. Be3 {[%clk 0:02:58.8]} 12... Bb6
{[%clk 0:02:55.6]} 13. Nc3 {[%clk 0:02:57.5]} 13... Nxc3 {[%clk 0:02:53.9]} 14.
bxc3 {[%clk 0:02:58.4]} 14... Qe7 {[%clk 0:02:50.3]} 15. a4 {[%clk 0:02:34.4]}
15... a5 {[%clk 0:02:47.8]} 16. Bf2 {[%clk 0:02:12.9]} 16... O-O {[%clk
0:02:44.8]} 17. Qh5 {[%clk 0:02:08.3]} 17... f6 {[%clk 0:02:38.6]} 18. Bh4
{[%clk 0:01:19.7]} 18... Qf7 {[%clk 0:02:32.6]} 19. Qxf7+ {[%clk 0:01:10.6]}
19... Kxf7 {[%clk 0:02:29.7]} 20. exf6 {[%clk 0:00:57]} 20... gxf6 {[%clk
0:02:28.1]} 21. Rfe1 {[%clk 0:00:56.1]} 21... Bf5 {[%clk 0:02:23]} 22. Bf2
{[%clk 0:00:54.3]} 22... Bxd4 {[%clk 0:02:21.3]} 23. cxd4 {[%clk 0:00:36.3]}
23... Bxc2 {[%clk 0:02:18.8]} 24. Rec1 {[%clk 0:00:34.1]} 24... Bb3 {[%clk
0:02:05.6]} 25. Rxc6 {[%clk 0:00:33.5]} 25... Rfc8 {[%clk 0:02:05.2]} 26. Bh4
{[%clk 0:00:26.2]} 26... f5 {[%clk 0:02:02.1]} 27. Re1 {[%clk 0:00:21.5]} 27...
Re8 {[%clk 0:02:00.9]} 28. Rxc7+ {[%clk 0:00:21]} 28... Kg6 {[%clk 0:02:00.9]}
29. Rc6+ {[%clk 0:00:17.5]} 29... Kf7 {[%clk 0:02:00]} 30. Rc7+ {[%clk
0:00:05.8]} 30... Kg6 {[%clk 0:01:58.7]} 31. Rc6+ {[%clk 0:00:04.8]} 31... Kf7
{[%clk 0:01:49.9]} 32. Rf6+ {[%clk 0:00:03.9]} 32... Kg7 {[%clk 0:01:49.7]} 33.
Rxf5 {[%clk 0:00:04.2]} 33... Rxe1+ {[%clk 0:01:44.7]} 34. Bxe1 {[%clk
0:00:05.1]} 34... Kg6 {[%clk 0:01:30.7]} 35. Re5 {[%clk 0:00:05.4]} 35... h5
{[%clk 0:01:29.3]} 36. f5+ {[%clk 0:00:05.3]} 36... Kf6 {[%clk 0:01:29.1]} 37.
Bh4+ {[%clk 0:00:05.2]} 37... Kf7 {[%clk 0:01:28.5]} 38. Re7+ {[%clk 0:00:05.6]}
38... Kf8 {[%clk 0:01:28.4]} 39. Rh7 {[%clk 0:00:05]} 39... Kg8 {[%clk
0:01:28.1]} 40. Rxh5 {[%clk 0:00:03.7]} 40... Bxa4 {[%clk 0:01:27.4]} 41. f6
{[%clk 0:00:04.3]} 41... Be8 {[%clk 0:01:26.9]} 42. Rg5+ {[%clk 0:00:04.2]}
42... Kf7 {[%clk 0:01:26.3]} 43. Rg7+ {[%clk 0:00:03.9]} 43... Ke6 {[%clk
0:01:26.1]} 44. Re7+ {[%clk 0:00:04]} 44... Kf5 {[%clk 0:01:23.8]} 45. f7 {[%clk
0:00:04.2]} 45... Bxf7 {[%clk 0:01:23.9]} 46. Rxf7+ {[%clk 0:00:05.1]} 46... Ke4
{[%clk 0:01:24.1]} 47. Bf6 {[%clk 0:00:03.9]} 47... a4 {[%clk 0:01:23.1]} 48.
Re7+ {[%clk 0:00:03.9]} 48... Kd3 {[%clk 0:01:22.9]} 49. Re1 {[%clk 0:00:03.5]}
49... a3 {[%clk 0:01:23.1]} 50. h4 {[%clk 0:00:03.7]} 50... a2 {[%clk
0:01:23.1]} 51. Ra1 {[%clk 0:00:03.6]} 51... Kc3 {[%clk 0:01:23.5]} 52. h5
{[%clk 0:00:04]} 52... Kb2 {[%clk 0:01:22.1]} 53. Rxa2+ {[%clk 0:00:02.5]} 53...
Kxa2 {[%clk 0:01:22.2]} 54. h6 {[%clk 0:00:03]} 54... Ra7 {[%clk 0:01:21.8]} 55.
Bg7 {[%clk 0:00:03]} 55... Kb3 {[%clk 0:01:20]} 56. h7 {[%clk 0:00:03.3]} 56...
Rxg7 {[%clk 0:01:19.2]} 57. h8=Q {[%clk 0:00:04.2]} 57... Rb7 {[%clk 0:01:19.3]}
58. Qc8 {[%clk 0:00:04.2]} 58... Rb5 {[%clk 0:01:18.9]} 59. Qc6 {[%clk
0:00:04.4]} 59... Kb4 {[%clk 0:01:18.5]} 60. g4 {[%clk 0:00:04.8]} 60... Ra5
{[%clk 0:01:18.3]} 61. g5 {[%clk 0:00:04.8]} 61... Ra1+ {[%clk 0:01:17.8]} 62.
Kf2 {[%clk 0:00:04.8]} 62... Ra2+ {[%clk 0:01:18.1]} 63. Kf3 {[%clk 0:00:05.3]}
63... Ra3+ {[%clk 0:01:17.7]} 64. Kf4 {[%clk 0:00:05.8]} 64... Rc3 {[%clk
0:01:17.8]} 65. Qxd5 {[%clk 0:00:05.8]} 65... Rc4 {[%clk 0:01:18.1]} 66. Qxc4+
{[%clk 0:00:05.8]} 66... Kxc4 {[%clk 0:01:18.8]} 67. g6 {[%clk 0:00:06.7]} 67...
Kd5 {[%clk 0:01:19.2]} 68. g7 {[%clk 0:00:07.6]} 68... Kxd4 {[%clk 0:01:19]} 69.
g8=Q {[%clk 0:00:08.5]} 1-0

[Event "*** Titled Tuesday Blitz"]
[Site "Chess.com"]
[Date "2021.03.30"]
[Round "11"]
[White "Romadk"]
[Black "Manukyan_Artak"]
[Result "0-1"]
[WhiteElo "2317"]
[BlackElo "2464"]
[TimeControl "180+1"]
[EndTime "12:08:40 PDT"]
[Termination "Manukyan_Artak won on time"]

1. d4 {[%clk 0:03:00.9]} 1... Nf6 {[%clk 0:02:57.3]} 2. Nf3 {[%clk 0:03:00.7]}
2... g6 {[%clk 0:02:47.4]} 3. c4 {[%clk 0:02:59.7]} 3... Bg7 {[%clk 0:02:46.5]}
4. Nc3 {[%clk 0:03:00.2]} 4... d6 {[%clk 0:02:46.2]} 5. Bg5 {[%clk 0:02:59.7]}
5... O-O {[%clk 0:02:45.6]} 6. e3 {[%clk 0:03:00.1]} 6... c5 {[%clk 0:02:45.4]}
7. d5 {[%clk 0:03:00]} 7... Qa5 {[%clk 0:02:44.7]} 8. Nd2 {[%clk 0:02:51.7]}
8... e5 {[%clk 0:02:38.5]} 9. dxe6 {[%clk 0:02:50.3]} 9... Bxe6 {[%clk
0:02:37.6]} 10. Be2 {[%clk 0:02:49.6]} 10... Nc6 {[%clk 0:02:37.1]} 11. Bf3
{[%clk 0:02:47.2]} 11... Ne5 {[%clk 0:02:35.1]} 12. Bxf6 {[%clk 0:02:42.7]}
12... Nd3+ {[%clk 0:02:22.6]} 13. Ke2 {[%clk 0:02:26.8]} 13... Nxb2 {[%clk
0:02:21.8]} 14. Qc2 {[%clk 0:02:12.6]} 14... Bxf6 {[%clk 0:02:21]} 15. Nd5
{[%clk 0:02:06.7]} 15... Bxd5 {[%clk 0:02:15.6]} 16. Bxd5 {[%clk 0:02:07.6]}
16... Na4 {[%clk 0:02:15.2]} 17. Ne4 {[%clk 0:01:59.6]} 17... Bxa1 {[%clk
0:02:08.8]} 18. Rxa1 {[%clk 0:02:00.5]} 18... Kg7 {[%clk 0:02:07.1]} 19. Rb1
{[%clk 0:01:51.9]} 19... Nb6 {[%clk 0:01:56.1]} 20. Rb5 {[%clk 0:01:39.5]} 20...
Qa4 {[%clk 0:01:48.1]} 21. Qb2+ {[%clk 0:01:37.3]} 21... f6 {[%clk 0:01:45.2]}
22. Nxd6 {[%clk 0:01:31.3]} 22... Rad8 {[%clk 0:01:30.9]} 23. Nxb7 {[%clk
0:01:24.6]} 23... Rxd5 {[%clk 0:01:26.9]} 24. cxd5 {[%clk 0:01:21.5]} 24... Qc4+
{[%clk 0:01:23.3]} 25. Ke1 {[%clk 0:01:10.6]} 25... Qxd5 {[%clk 0:01:17.7]} 26.
Nxc5 {[%clk 0:00:29.2]} 26... Rd8 {[%clk 0:00:56]} 27. Qb3 {[%clk 0:00:29]}
27... Qd2+ {[%clk 0:00:48.7]} 28. Kf1 {[%clk 0:00:28.9]} 28... Kh6 {[%clk
0:00:42.9]} 29. Ne6 {[%clk 0:00:23.7]} 29... Qc1+ {[%clk 0:00:42.1]} 30. Ke2
{[%clk 0:00:23.8]} 30... Rd2+ {[%clk 0:00:41.6]} 31. Kf3 {[%clk 0:00:23.9]}
31... Qe1 {[%clk 0:00:41.7]} 32. Nf4 {[%clk 0:00:07.6]} 32... Qxf2+ {[%clk
0:00:36.8]} 33. Ke4 {[%clk 0:00:07]} 33... Rd7 {[%clk 0:00:26]} 34. Qe6 {[%clk
0:00:05.2]} 34... Qc2+ {[%clk 0:00:24.2]} 35. Kf3 {[%clk 0:00:04.8]} 35... Qd1+
{[%clk 0:00:22.7]} 36. Kg3 {[%clk 0:00:02.7]} 36... Qd6 {[%clk 0:00:21.9]} 37.
Qh3+ {[%clk 0:00:01.8]} 37... Kg7 {[%clk 0:00:21.4]} 38. Qg4 {[%clk 0:00:02.7]}
38... g5 {[%clk 0:00:21.3]} 39. Rxg5+ {[%clk 0:00:01.1]} 39... fxg5 {[%clk
0:00:21.4]} 40. Qxg5+ {[%clk 0:00:01.3]} 40... Kf8 {[%clk 0:00:21.2]} 0-1

[Event "*** Titled Tuesday Blitz"]
[Site "Chess.com"]
[Date "2021.03.30"]
[Round "11"]
[White "UKR_Master"]
[Black "bolence16"]
[Result "1-0"]
[WhiteElo "2545"]
[BlackElo "2431"]
[TimeControl "180+1"]
[EndTime "12:08:43 PDT"]
[Termination "UKR_Master won by resignation"]

1. e4 {[%clk 0:03:00.9]} 1... e5 {[%clk 0:03:00.1]} 2. Nf3 {[%clk 0:03:01.1]}
2... Nc6 {[%clk 0:03:00.4]} 3. Bb5 {[%clk 0:03:01.9]} 3... Nd4 {[%clk
0:03:00.6]} 4. Nxd4 {[%clk 0:03:01.7]} 4... exd4 {[%clk 0:03:01.5]} 5. Bc4
{[%clk 0:03:01.9]} 5... Nf6 {[%clk 0:02:59.6]} 6. e5 {[%clk 0:02:55.6]} 6... d5
{[%clk 0:02:49.8]} 7. exf6 {[%clk 0:02:34.5]} 7... dxc4 {[%clk 0:02:49.6]} 8.
fxg7 {[%clk 0:02:32.2]} 8... Bxg7 {[%clk 0:02:49.4]} 9. O-O {[%clk 0:02:31.3]}
9... O-O {[%clk 0:02:49.1]} 10. d3 {[%clk 0:02:30.2]} 10... Be6 {[%clk
0:02:41.6]} 11. Bf4 {[%clk 0:02:28.3]} 11... cxd3 {[%clk 0:02:31.7]} 12. cxd3
{[%clk 0:02:27.3]} 12... Bf5 {[%clk 0:02:13.4]} 13. Qd2 {[%clk 0:02:21.1]} 13...
c5 {[%clk 0:02:10.2]} 14. Na3 {[%clk 0:02:19.8]} 14... a6 {[%clk 0:02:08.1]} 15.
Nc4 {[%clk 0:02:19.2]} 15... b5 {[%clk 0:02:02.1]} 16. Nd6 {[%clk 0:02:19.3]}
16... Be6 {[%clk 0:01:57.9]} 17. Rfc1 {[%clk 0:02:01.3]} 17... Qb6 {[%clk
0:01:22.5]} 18. Ne4 {[%clk 0:01:59.5]} 18... Rac8 {[%clk 0:01:19.4]} 19. Bd6
{[%clk 0:01:37.3]} 19... c4 {[%clk 0:01:13.1]} 20. Bxf8 {[%clk 0:01:35.3]} 20...
Rxf8 {[%clk 0:01:13.2]} 21. Qf4 {[%clk 0:01:30.3]} 21... Bd5 {[%clk 0:01:03.7]}
22. Ng5 {[%clk 0:01:14.6]} 22... h6 {[%clk 0:00:57.9]} 23. Qf5 {[%clk
0:01:08.1]} 23... hxg5 {[%clk 0:00:57]} 24. Qxd5 {[%clk 0:01:08.2]} 24... c3
{[%clk 0:00:57.5]} 25. b3 {[%clk 0:01:05]} 25... Qg6 {[%clk 0:00:49.1]} 26. Rd1
{[%clk 0:01:01.4]} 26... Rc8 {[%clk 0:00:45.3]} 27. Rac1 {[%clk 0:01:00.4]}
27... g4 {[%clk 0:00:36.6]} 28. Rc2 {[%clk 0:00:56.9]} 28... Qe6 {[%clk
0:00:34.4]} 29. Qxe6 {[%clk 0:00:55.3]} 29... fxe6 {[%clk 0:00:35.3]} 30. Re1
{[%clk 0:00:55.9]} 30... Kf7 {[%clk 0:00:35.2]} 31. Re4 {[%clk 0:00:56.4]} 31...
Rc5 {[%clk 0:00:32]} 32. Rxg4 {[%clk 0:00:56]} 32... Re5 {[%clk 0:00:32.1]} 33.
Kf1 {[%clk 0:00:56.6]} 33... Bh6 {[%clk 0:00:32.1]} 34. Rxd4 {[%clk 0:00:54.2]}
34... Bd2 {[%clk 0:00:32.3]} 35. Re4 {[%clk 0:00:53.3]} 35... Rd5 {[%clk
0:00:32.1]} 36. Ke2 {[%clk 0:00:53.3]} 36... a5 {[%clk 0:00:30.2]} 37. Rxd2
{[%clk 0:00:53.4]} 37... cxd2 {[%clk 0:00:30.2]} 38. Kxd2 {[%clk 0:00:54.3]}
38... Rh5 {[%clk 0:00:30.5]} 39. h4 {[%clk 0:00:53.8]} 39... Rf5 {[%clk
0:00:24.4]} 40. f3 {[%clk 0:00:52.8]} 40... Rc5 {[%clk 0:00:24]} 41. g4 {[%clk
0:00:52.6]} 41... b4 {[%clk 0:00:24.2]} 42. h5 {[%clk 0:00:52.1]} 42... Kf6
{[%clk 0:00:24.4]} 43. Rf4+ {[%clk 0:00:47.9]} 43... Kg7 {[%clk 0:00:23.6]} 44.
Rc4 {[%clk 0:00:47]} 44... Rd5 {[%clk 0:00:21.3]} 45. Rc6 {[%clk 0:00:46.4]}
45... Kf7 {[%clk 0:00:21]} 46. h6 {[%clk 0:00:45.4]} 46... Re5 {[%clk
0:00:13.9]} 47. f4 {[%clk 0:00:44.3]} 47... Rd5 {[%clk 0:00:14.1]} 48. g5 {[%clk
0:00:44.2]} 48... Rd8 {[%clk 0:00:12.6]} 49. Ra6 {[%clk 0:00:42.4]} 49... Rd5
{[%clk 0:00:11.9]} 50. Ra7+ {[%clk 0:00:40.7]} 50... Kg8 {[%clk 0:00:10.5]} 51.
Ke3 {[%clk 0:00:40.7]} 51... e5 {[%clk 0:00:09.8]} 52. f5 {[%clk 0:00:39.8]}
52... Rd4 {[%clk 0:00:09.2]} 53. g6 {[%clk 0:00:39.5]} 1-0

[Event "*** Titled Tuesday Blitz"]
[Site "Chess.com"]
[Date "2021.03.30"]
[Round "11"]
[White "Tenamu"]
[Black "Leonid_Starozhilov"]
[Result "1-0"]
[WhiteElo "2512"]
[BlackElo "2718"]
[TimeControl "180+1"]
[EndTime "12:08:46 PDT"]
[Termination "Tenamu won on time"]

1. e4 {[%clk 0:03:00.9]} 1... Nc6 {[%clk 0:02:57.4]} 2. Nf3 {[%clk 0:02:59.8]}
2... d6 {[%clk 0:02:56.1]} 3. d4 {[%clk 0:02:58.7]} 3... Nf6 {[%clk 0:02:56.3]}
4. Nc3 {[%clk 0:02:55.3]} 4... g6 {[%clk 0:02:56.3]} 5. d5 {[%clk 0:02:29.5]}
5... Nb8 {[%clk 0:02:53.8]} 6. Be2 {[%clk 0:02:28.3]} 6... Bg4 {[%clk
0:02:53.1]} 7. Nd4 {[%clk 0:02:26]} 7... Bxe2 {[%clk 0:02:35.8]} 8. Qxe2 {[%clk
0:02:26.9]} 8... Nbd7 {[%clk 0:02:34.8]} 9. O-O {[%clk 0:02:26.2]} 9... Bg7
{[%clk 0:02:33.6]} 10. Be3 {[%clk 0:02:19.5]} 10... O-O {[%clk 0:02:31.9]} 11.
f4 {[%clk 0:02:16]} 11... Nb6 {[%clk 0:02:10.6]} 12. a4 {[%clk 0:02:12.5]} 12...
a5 {[%clk 0:02:01.8]} 13. Rad1 {[%clk 0:02:11.6]} 13... Nfd7 {[%clk 0:01:57]}
14. h4 {[%clk 0:02:02.2]} 14... Nc5 {[%clk 0:01:54.7]} 15. b3 {[%clk 0:02:01.3]}
15... e5 {[%clk 0:01:29.4]} 16. dxe6 {[%clk 0:02:00.2]} 16... fxe6 {[%clk
0:01:28.2]} 17. h5 {[%clk 0:02:00.4]} 17... Qh4 {[%clk 0:01:09.6]} 18. hxg6
{[%clk 0:01:58.2]} 18... hxg6 {[%clk 0:01:10.5]} 19. Nf3 {[%clk 0:01:57.3]}
19... Qg4 {[%clk 0:01:06.8]} 20. e5 {[%clk 0:01:51.1]} 20... Nbd7 {[%clk
0:00:42.5]} 21. Qc4 {[%clk 0:01:26.1]} 21... Rac8 {[%clk 0:00:23]} 22. Ng5
{[%clk 0:01:17.1]} 22... d5 {[%clk 0:00:12]} 23. Nxd5 {[%clk 0:01:17]} 23...
exd5 {[%clk 0:00:12.1]} 24. Rxd5 {[%clk 0:01:17.9]} 24... Kh8 {[%clk 0:00:08.5]}
25. Bxc5 {[%clk 0:01:14.9]} 25... Rf5 {[%clk 0:00:04.5]} 26. Rxd7 {[%clk
0:01:10.8]} 26... b6 {[%clk 0:00:03.7]} 27. Rf3 {[%clk 0:00:49.7]} 27... Rxg5
{[%clk 0:00:03.5]} 28. fxg5 {[%clk 0:00:45.9]} 28... Qxd7 {[%clk 0:00:02.2]} 29.
Rh3+ {[%clk 0:00:45]} 29... Qxh3 {[%clk 0:00:02.9]} 30. gxh3 {[%clk 0:00:45.8]}
30... bxc5 {[%clk 0:00:03.6]} 31. Qxc5 {[%clk 0:00:44.2]} 31... Re8 {[%clk
0:00:04]} 32. Qxa5 {[%clk 0:00:43.8]} 32... Bxe5 {[%clk 0:00:03.7]} 33. h4
{[%clk 0:00:43.3]} 33... Bd6 {[%clk 0:00:03.5]} 34. Qb5 {[%clk 0:00:42.3]} 34...
Re5 {[%clk 0:00:03.4]} 35. Qd3 {[%clk 0:00:40.1]} 35... Kg7 {[%clk 0:00:03.1]}
36. c3 {[%clk 0:00:38.3]} 36... Rf5 {[%clk 0:00:03]} 37. b4 {[%clk 0:00:38.2]}
37... Rf4 {[%clk 0:00:03.5]} 38. a5 {[%clk 0:00:38.5]} 38... Rg4+ {[%clk
0:00:03.5]} 39. Kf1 {[%clk 0:00:37.4]} 39... Rxh4 {[%clk 0:00:03.5]} 40. a6
{[%clk 0:00:38]} 40... Rh1+ {[%clk 0:00:03.4]} 41. Kg2 {[%clk 0:00:38.4]} 41...
Rh2+ {[%clk 0:00:03.8]} 42. Kf3 {[%clk 0:00:35.3]} 42... Ra2 {[%clk 0:00:03.4]}
43. b5 {[%clk 0:00:34.7]} 43... Kf8 {[%clk 0:00:02.5]} 44. Qxg6 {[%clk
0:00:34.1]} 44... Ke7 {[%clk 0:00:02]} 45. Qf6+ {[%clk 0:00:34]} 45... Kd7
{[%clk 0:00:02.1]} 46. Qf7+ {[%clk 0:00:34.6]} 46... Kc8 {[%clk 0:00:02.7]} 47.
Qxa2 {[%clk 0:00:30.7]} 1-0